[Event "*** Titled Tuesday Blitz"]
[Site "Chess.com"]
[Date "2019.04.02"]
[Round "8"]
[White "Aemulus20"]
[Black "PaulfromSPb"]
[Result "0-1"]
[WhiteElo "2506"]
[BlackElo "2644"]
[TimeControl "180+2"]
[EndTime "15:50:37 PDT"]
[Termination "PaulfromSPb won by resignation"]

1. e4 {[%clk 0:03:01.9]} 1... c5 {[%clk 0:02:59.2]} 2. Nf3 {[%clk 0:03:02.6]}
2... d6 {[%clk 0:03:00]} 3. d4 {[%clk 0:03:04]} 3... cxd4 {[%clk 0:03:00.6]} 4.
Nxd4 {[%clk 0:03:05.9]} 4... Nf6 {[%clk 0:03:01.5]} 5. Nc3 {[%clk 0:03:07]} 5...
a6 {[%clk 0:03:01.4]} 6. Be2 {[%clk 0:03:08]} 6... e5 {[%clk 0:03:01.8]} 7. Nb3
{[%clk 0:03:09.3]} 7... Be7 {[%clk 0:03:01.6]} 8. O-O {[%clk 0:03:10.2]} 8...
O-O {[%clk 0:03:02]} 9. Kh1 {[%clk 0:03:11]} 9... b5 {[%clk 0:03:00.4]} 10. a4
{[%clk 0:02:55.5]} 10... Bb7 {[%clk 0:02:54.8]} 11. f3 {[%clk 0:02:27]} 11... b4
{[%clk 0:02:48.4]} 12. Nd5 {[%clk 0:02:23.8]} 12... Nxd5 {[%clk 0:02:36.6]} 13.
exd5 {[%clk 0:02:23.9]} 13... a5 {[%clk 0:02:38.5]} 14. c4 {[%clk 0:02:05.2]}
14... bxc3 {[%clk 0:02:31.8]} 15. bxc3 {[%clk 0:02:07.1]} 15... Nd7 {[%clk
0:02:31]} 16. Bb5 {[%clk 0:02:02.2]} 16... Qc7 {[%clk 0:02:25.5]} 17. c4 {[%clk
0:01:59.6]} 17... Nb6 {[%clk 0:02:12.7]} 18. Qd3 {[%clk 0:01:50.3]} 18... Bf6
{[%clk 0:02:09.9]} 19. Bd2 {[%clk 0:01:41.4]} 19... e4 {[%clk 0:02:08.9]} 20.
fxe4 {[%clk 0:01:40.5]} 20... Bxa1 {[%clk 0:02:09.2]} 21. Rxa1 {[%clk
0:01:42.4]} 21... Ba6 {[%clk 0:02:07.9]} 22. Bxa5 {[%clk 0:01:22.7]} 22... Bxb5
{[%clk 0:02:05]} 23. cxb5 {[%clk 0:01:23.3]} 23... Rxa5 {[%clk 0:01:26.7]} 24.
Nxa5 {[%clk 0:01:19.7]} 24... Nxa4 {[%clk 0:01:27.3]} 25. Nc6 {[%clk 0:01:14]}
25... Nc5 {[%clk 0:01:28]} 26. Qc4 {[%clk 0:00:48.3]} 26... Qb6 {[%clk
0:01:28.2]} 27. Rc1 {[%clk 0:00:38.6]} 27... f6 {[%clk 0:01:23.8]} 28. Ne7+
{[%clk 0:00:23.5]} 28... Kh8 {[%clk 0:01:21.9]} 29. Nf5 {[%clk 0:00:25]} 29...
Ra8 {[%clk 0:01:14.9]} 30. h3 {[%clk 0:00:23.3]} 30... Rc8 {[%clk 0:00:55.5]}
31. e5 {[%clk 0:00:13]} 31... fxe5 {[%clk 0:00:46.3]} 32. Qg4 {[%clk 0:00:11.9]}
32... Rg8 {[%clk 0:00:45.7]} 33. Ne7 {[%clk 0:00:09]} 33... Rf8 {[%clk
0:00:43.3]} 34. Nf5 {[%clk 0:00:06.9]} 34... Qc7 {[%clk 0:00:40.5]} 35. b6
{[%clk 0:00:07.8]} 35... Qd7 {[%clk 0:00:40.6]} 36. Rb1 {[%clk 0:00:04.2]} 36...
Qxf5 {[%clk 0:00:27.6]} 37. Qxf5 {[%clk 0:00:05]} 37... Rxf5 {[%clk 0:00:28.6]}
38. b7 {[%clk 0:00:06.2]} 38... Nxb7 {[%clk 0:00:29.7]} 39. Rxb7 {[%clk
0:00:06.5]} 39... h5 {[%clk 0:00:31.6]} 40. Rd7 {[%clk 0:00:07]} 40... Rf6
{[%clk 0:00:32.6]} 41. h4 {[%clk 0:00:07.8]} 41... Kh7 {[%clk 0:00:32.8]} 42.
Kh2 {[%clk 0:00:08.3]} 42... Kg6 {[%clk 0:00:29.8]} 43. Kg3 {[%clk 0:00:09.4]}
43... Kf5 {[%clk 0:00:29.7]} 44. Rxg7 {[%clk 0:00:10.2]} 44... Rg6+ {[%clk
0:00:27.6]} 45. Rxg6 {[%clk 0:00:11.3]} 45... Kxg6 {[%clk 0:00:28.8]} 46. Kf3
{[%clk 0:00:09.4]} 46... Kf5 {[%clk 0:00:29.8]} 47. g4+ {[%clk 0:00:05.3]} 47...
hxg4+ {[%clk 0:00:29.8]} 48. Kg3 {[%clk 0:00:07.2]} 48... e4 {[%clk 0:00:30.4]}
49. h5 {[%clk 0:00:08.4]} 49... e3 {[%clk 0:00:28.9]} 50. h6 {[%clk 0:00:09.1]}
50... Kg6 {[%clk 0:00:29.9]} 0-1

[Event "*** Titled Tuesday Blitz"]
[Site "Chess.com"]
[Date "2019.04.02"]
[Round "8"]
[White "Ali_rastbod"]
[Black "EvgenyT"]
[Result "0-1"]
[WhiteElo "2620"]
[BlackElo "2914"]
[TimeControl "180+2"]
[EndTime "15:50:45 PDT"]
[Termination "EvgenyT won by resignation"]

1. c4 {[%clk 0:03:01]} 1... e5 {[%clk 0:03:00.2]} 2. Nc3 {[%clk 0:03:02.1]} 2...
Bb4 {[%clk 0:03:00.6]} 3. Qb3 {[%clk 0:03:02.1]} 3... Nc6 {[%clk 0:02:59.9]} 4.
Nf3 {[%clk 0:03:01.7]} 4... a5 {[%clk 0:02:55.7]} 5. a3 {[%clk 0:02:55.9]} 5...
Bc5 {[%clk 0:02:55.2]} 6. g3 {[%clk 0:02:53.1]} 6... Nf6 {[%clk 0:02:53.3]} 7.
Bg2 {[%clk 0:02:49]} 7... O-O {[%clk 0:02:54.3]} 8. O-O {[%clk 0:02:40.4]} 8...
d6 {[%clk 0:02:54.8]} 9. d3 {[%clk 0:02:36.4]} 9... h6 {[%clk 0:02:55.5]} 10.
Qc2 {[%clk 0:02:28.3]} 10... Bg4 {[%clk 0:02:52.9]} 11. e3 {[%clk 0:02:13.2]}
11... Qd7 {[%clk 0:02:52.8]} 12. Re1 {[%clk 0:02:03.3]} 12... Bh3 {[%clk
0:02:53.1]} 13. Bh1 {[%clk 0:02:04.8]} 13... Rfe8 {[%clk 0:02:52.3]} 14. Rb1
{[%clk 0:02:04.1]} 14... Qf5 {[%clk 0:02:43.6]} 15. Nd2 {[%clk 0:01:53.6]} 15...
Qh5 {[%clk 0:02:37.4]} 16. Nde4 {[%clk 0:01:51.3]} 16... Nxe4 {[%clk 0:02:29.4]}
17. Nxe4 {[%clk 0:01:45.3]} 17... Qg6 {[%clk 0:02:15.6]} 18. Bd2 {[%clk
0:01:29.3]} 18... a4 {[%clk 0:01:50.8]} 19. Nc3 {[%clk 0:01:22.4]} 19... Bf5
{[%clk 0:01:50.9]} 20. Be4 {[%clk 0:01:21.9]} 20... Bxe4 {[%clk 0:01:51.8]} 21.
dxe4 {[%clk 0:01:23.2]} 21... Nd8 {[%clk 0:01:52.9]} 22. Nxa4 {[%clk 0:01:21.1]}
22... Ne6 {[%clk 0:01:53.7]} 23. Nxc5 {[%clk 0:01:22.4]} 23... dxc5 {[%clk
0:01:52]} 24. h4 {[%clk 0:01:22.1]} 24... Qf6 {[%clk 0:01:32.7]} 25. Bc3 {[%clk
0:00:53.4]} 25... g5 {[%clk 0:01:32.8]} 26. h5 {[%clk 0:00:54.8]} 26... g4
{[%clk 0:01:29]} 27. Qe2 {[%clk 0:00:54.1]} 27... Qg5 {[%clk 0:01:29.2]} 28. Kg2
{[%clk 0:00:50.8]} 28... Qxh5 {[%clk 0:01:15]} 29. Rh1 {[%clk 0:00:51.8]} 29...
Qg5 {[%clk 0:01:16.1]} 30. Rh4 {[%clk 0:00:51.7]} 30... h5 {[%clk 0:01:17.1]}
31. Rbh1 {[%clk 0:00:53.2]} 31... Ng7 {[%clk 0:01:18]} 32. f3 {[%clk 0:00:44.5]}
32... gxf3+ {[%clk 0:01:17.8]} 33. Qxf3 {[%clk 0:00:46.4]} 33... Ra6 {[%clk
0:01:18.8]} 34. Rxh5 {[%clk 0:00:41.1]} 34... Nxh5 {[%clk 0:01:18.2]} 35. Rxh5
{[%clk 0:00:43]} 35... Qg7 {[%clk 0:01:16.5]} 36. Qf5 {[%clk 0:00:38.4]} 36...
Rf6 {[%clk 0:00:50.5]} 37. Qd7 {[%clk 0:00:39.2]} 37... Rfe6 {[%clk 0:00:50.9]}
38. Qxc7 {[%clk 0:00:33.6]} 38... Qg4 {[%clk 0:00:46.5]} 39. Rh4 {[%clk
0:00:22.1]} 39... Qe2+ {[%clk 0:00:47]} 40. Kh3 {[%clk 0:00:15.8]} 40... Qxe3
{[%clk 0:00:30.8]} 41. Rg4+ {[%clk 0:00:10.8]} 41... Kf8 {[%clk 0:00:30.5]} 42.
Qxb7 {[%clk 0:00:03.6]} 42... Rh6+ {[%clk 0:00:23.4]} 43. Rh4 {[%clk 0:00:05]}
43... Rxh4+ {[%clk 0:00:13.1]} 44. Kxh4 {[%clk 0:00:06.9]} 44... Kg7 {[%clk
0:00:13.7]} 45. Kg4 {[%clk 0:00:08.4]} 45... Kg6 {[%clk 0:00:09.1]} 46. Qd7
{[%clk 0:00:07.8]} 46... Qe2+ {[%clk 0:00:07.7]} 0-1

[Event "*** Titled Tuesday Blitz"]
[Site "Chess.com"]
[Date "2019.04.02"]
[Round "8"]
[White "Vice64"]
[Black "2nd_life"]
[Result "0-1"]
[WhiteElo "2543"]
[BlackElo "2461"]
[TimeControl "180+2"]
[EndTime "15:50:45 PDT"]
[Termination "2nd_life won by resignation"]

1. e4 {[%clk 0:03:01.9]} 1... e5 {[%clk 0:02:58.2]} 2. Nf3 {[%clk 0:03:02.4]}
2... Nc6 {[%clk 0:02:59.3]} 3. Bb5 {[%clk 0:03:03.4]} 3... a6 {[%clk 0:03:00.8]}
4. Ba4 {[%clk 0:03:04.4]} 4... Nf6 {[%clk 0:03:02]} 5. O-O {[%clk 0:03:05.3]}
5... Be7 {[%clk 0:03:03.2]} 6. Bxc6 {[%clk 0:03:05.1]} 6... dxc6 {[%clk
0:03:03.3]} 7. d3 {[%clk 0:03:06.5]} 7... Nd7 {[%clk 0:03:00.5]} 8. Nbd2 {[%clk
0:03:07]} 8... c5 {[%clk 0:02:57]} 9. Nc4 {[%clk 0:03:06.7]} 9... f6 {[%clk
0:02:55.8]} 10. a4 {[%clk 0:03:07.1]} 10... O-O {[%clk 0:02:48.8]} 11. Nh4
{[%clk 0:03:07.7]} 11... Nb8 {[%clk 0:02:46.1]} 12. Nf5 {[%clk 0:03:00.3]} 12...
Nc6 {[%clk 0:02:44.9]} 13. Be3 {[%clk 0:02:56.6]} 13... Bxf5 {[%clk 0:02:30.1]}
14. exf5 {[%clk 0:02:57]} 14... b5 {[%clk 0:02:30.7]} 15. Nd2 {[%clk 0:02:51.4]}
15... Qd5 {[%clk 0:02:24.4]} 16. Qg4 {[%clk 0:02:46.5]} 16... Rfd8 {[%clk
0:02:13.7]} 17. Ne4 {[%clk 0:02:40.8]} 17... Kh8 {[%clk 0:02:08.6]} 18. Nc3
{[%clk 0:02:27.1]} 18... Qd7 {[%clk 0:02:01.6]} 19. axb5 {[%clk 0:02:27.1]}
19... Nd4 {[%clk 0:02:02.8]} 20. Bxd4 {[%clk 0:01:50.4]} 20... exd4 {[%clk
0:01:51.9]} 21. Ne4 {[%clk 0:01:48.8]} 21... axb5 {[%clk 0:01:52.6]} 22. Ng3
{[%clk 0:01:46.8]} 22... Bd6 {[%clk 0:01:29.9]} 23. Ne4 {[%clk 0:01:46.8]} 23...
Bf8 {[%clk 0:01:28.9]} 24. h4 {[%clk 0:01:47.3]} 24... Qd5 {[%clk 0:01:24.7]}
25. Rfe1 {[%clk 0:01:39]} 25... c4 {[%clk 0:01:00.6]} 26. h5 {[%clk 0:01:38]}
26... h6 {[%clk 0:01:00.7]} 27. Qg6 {[%clk 0:01:38.2]} 27... c5 {[%clk
0:00:51.9]} 28. Ng3 {[%clk 0:01:18.5]} 28... cxd3 {[%clk 0:00:45.9]} 29. cxd3
{[%clk 0:01:18.9]} 29... c4 {[%clk 0:00:47.2]} 30. Rxa8 {[%clk 0:01:15.7]} 30...
Rxa8 {[%clk 0:00:46.6]} 31. Ne2 {[%clk 0:00:54.8]} 31... cxd3 {[%clk 0:00:42.3]}
32. Nf4 {[%clk 0:00:55.8]} 32... d2 {[%clk 0:00:43.2]} 33. Rd1 {[%clk
0:00:55.9]} 33... Qe4 {[%clk 0:00:41.9]} 34. Qg4 {[%clk 0:00:56.5]} 34... Qe1+
{[%clk 0:00:33.8]} 35. Kh2 {[%clk 0:00:57.3]} 35... Bd6 {[%clk 0:00:34.4]} 36.
Kg3 {[%clk 0:00:50.6]} 36... Bxf4+ {[%clk 0:00:33]} 37. Kxf4 {[%clk 0:00:51.8]}
37... Qxf2+ {[%clk 0:00:33.5]} 38. Ke4 {[%clk 0:00:52.7]} 38... Qe3+ {[%clk
0:00:25.1]} 39. Kd5 {[%clk 0:00:52.7]} 39... Rd8+ {[%clk 0:00:26.2]} 40. Kc6
{[%clk 0:00:50.8]} 40... d3 {[%clk 0:00:25.6]} 41. b4 {[%clk 0:00:41.6]} 41...
Qe2 {[%clk 0:00:22.1]} 42. Qf3 {[%clk 0:00:41.4]} 42... Qe8+ {[%clk 0:00:16.3]}
43. Kb6 {[%clk 0:00:35.1]} 43... Rb8+ {[%clk 0:00:16.6]} 44. Ka7 {[%clk
0:00:33.5]} 44... Rd8 {[%clk 0:00:10.1]} 45. Rxd2 {[%clk 0:00:31.2]} 45... Qe7+
{[%clk 0:00:11.4]} 46. Qb7 {[%clk 0:00:27.4]} 46... Rd7 {[%clk 0:00:11.7]} 47.
Qxd7 {[%clk 0:00:28.5]} 47... Qxd7+ {[%clk 0:00:12.7]} 48. Kb6 {[%clk
0:00:30.4]} 48... Qd4+ {[%clk 0:00:13.5]} 49. Kxb5 {[%clk 0:00:30.8]} 49... Qc3
{[%clk 0:00:15]} 50. Rxd3 {[%clk 0:00:31.5]} 50... Qxd3+ {[%clk 0:00:16]} 51.
Ka5 {[%clk 0:00:32.2]} 51... Qxf5+ {[%clk 0:00:17]} 52. b5 {[%clk 0:00:33.4]}
52... Qxh5 {[%clk 0:00:18.3]} 53. Ka6 {[%clk 0:00:34.8]} 53... Qe2 {[%clk
0:00:18.9]} 54. g3 {[%clk 0:00:33.7]} 54... h5 {[%clk 0:00:18.5]} 55. Kb6 {[%clk
0:00:34.5]} 55... g5 {[%clk 0:00:18.9]} 56. Kc6 {[%clk 0:00:34.8]} 56... Qxb5+
{[%clk 0:00:19.8]} 57. Kxb5 {[%clk 0:00:35.1]} 57... h4 {[%clk 0:00:21.7]} 0-1

[Event "*** Titled Tuesday Blitz"]
[Site "Chess.com"]
[Date "2019.04.02"]
[Round "8"]
[White "Floatingdream1"]
[Black "Bryakin_Mikhail"]
[Result "1-0"]
[WhiteElo "2820"]
[BlackElo "2752"]
[TimeControl "180+2"]
[EndTime "15:50:47 PDT"]
[Termination "Floatingdream1 won on time"]

1. d4 {[%clk 0:03:01.9]} 1... d5 {[%clk 0:02:57]} 2. c4 {[%clk 0:03:02.9]} 2...
c6 {[%clk 0:02:57.9]} 3. Nf3 {[%clk 0:03:03.5]} 3... Nf6 {[%clk 0:02:59]} 4. e3
{[%clk 0:03:04.5]} 4... Bf5 {[%clk 0:02:59]} 5. Nc3 {[%clk 0:03:04.8]} 5... e6
{[%clk 0:02:58.7]} 6. Nh4 {[%clk 0:03:05.9]} 6... Be4 {[%clk 0:02:59.9]} 7. f3
{[%clk 0:03:03.8]} 7... Bg6 {[%clk 0:03:01.1]} 8. Be2 {[%clk 0:03:03.6]} 8...
Be7 {[%clk 0:02:59.7]} 9. O-O {[%clk 0:03:03.4]} 9... Nbd7 {[%clk 0:03:00.2]}
10. Bd2 {[%clk 0:02:50.2]} 10... O-O {[%clk 0:02:58.3]} 11. Nxg6 {[%clk
0:02:50.9]} 11... hxg6 {[%clk 0:02:59.4]} 12. Be1 {[%clk 0:02:46.7]} 12... Bd6
{[%clk 0:02:57.1]} 13. c5 {[%clk 0:02:32]} 13... Bc7 {[%clk 0:02:57.3]} 14. f4
{[%clk 0:02:33]} 14... Ne4 {[%clk 0:02:54.7]} 15. Nxe4 {[%clk 0:02:31.7]} 15...
dxe4 {[%clk 0:02:56.6]} 16. Bc4 {[%clk 0:02:31.1]} 16... Nf6 {[%clk 0:02:56.1]}
17. Qc2 {[%clk 0:02:31.9]} 17... g5 {[%clk 0:02:35.2]} 18. fxg5 {[%clk
0:02:01.5]} 18... Ng4 {[%clk 0:02:30.8]} 19. Qxe4 {[%clk 0:02:01.6]} 19... Qxg5
{[%clk 0:02:18.1]} 20. Rf3 {[%clk 0:02:01]} 20... Bxh2+ {[%clk 0:02:11.8]} 21.
Kh1 {[%clk 0:02:00.6]} 21... Bc7 {[%clk 0:02:13.1]} 22. Rh3 {[%clk 0:01:58.8]}
22... Nf6 {[%clk 0:02:08.8]} 23. Qf3 {[%clk 0:01:56.7]} 23... Qf5 {[%clk
0:02:07.4]} 24. Bh4 {[%clk 0:01:34]} 24... Ng4 {[%clk 0:01:32.2]} 25. Rf1 {[%clk
0:01:25.6]} 25... Qxf3 {[%clk 0:01:20]} 26. Rfxf3 {[%clk 0:01:13.7]} 26... g6
{[%clk 0:00:56.4]} 27. Kg1 {[%clk 0:01:04.1]} 27... Kg7 {[%clk 0:00:57]} 28. Be1
{[%clk 0:00:56.5]} 28... Rae8 {[%clk 0:00:44.5]} 29. Bc3 {[%clk 0:00:57.1]}
29... f6 {[%clk 0:00:46]} 30. Rh4 {[%clk 0:00:55.5]} 30... Nh6 {[%clk 0:00:43]}
31. Rfh3 {[%clk 0:00:54.7]} 31... Rh8 {[%clk 0:00:44.3]} 32. e4 {[%clk
0:00:54.8]} 32... Nf7 {[%clk 0:00:31.6]} 33. Rxh8 {[%clk 0:00:53.2]} 33... Nxh8
{[%clk 0:00:33.5]} 34. d5 {[%clk 0:00:45.9]} 34... exd5 {[%clk 0:00:34.7]} 35.
exd5 {[%clk 0:00:47]} 35... cxd5 {[%clk 0:00:36.6]} 36. Bxd5 {[%clk 0:00:48.2]}
36... b6 {[%clk 0:00:34.7]} 37. Rf3 {[%clk 0:00:47.3]} 37... Be5 {[%clk
0:00:35.6]} 38. c6 {[%clk 0:00:46.7]} 38... Nf7 {[%clk 0:00:27.6]} 39. c7 {[%clk
0:00:29.3]} 39... Nd6 {[%clk 0:00:26.1]} 40. Bxe5 {[%clk 0:00:24.3]} 40... Rxe5
{[%clk 0:00:24.3]} 41. Rd3 {[%clk 0:00:25.4]} 41... Re1+ {[%clk 0:00:20.4]} 42.
Kf2 {[%clk 0:00:25.3]} 42... Rc1 {[%clk 0:00:22.3]} 43. Rc3 {[%clk 0:00:25.4]}
43... Rd1 {[%clk 0:00:16.6]} 44. Be6 {[%clk 0:00:20.8]} 44... Rd2+ {[%clk
0:00:16.3]} 45. Kf3 {[%clk 0:00:21.9]} 45... f5 {[%clk 0:00:08]} 46. Rc6 {[%clk
0:00:18.9]} 46... Ne4 {[%clk 0:00:03.9]} 47. c8=Q {[%clk 0:00:18]} 1-0

[Event "*** Titled Tuesday Blitz"]
[Site "Chess.com"]
[Date "2019.04.02"]
[Round "8"]
[White "IakovUlivar"]
[Black "FERNANDEZL1983"]
[Result "1-0"]
[WhiteElo "2541"]
[BlackElo "2427"]
[TimeControl "180+2"]
[EndTime "15:50:48 PDT"]
[Termination "IakovUlivar won by resignation"]

1. e4 {[%clk 0:03:01.9]} 1... c5 {[%clk 0:02:59.5]} 2. Nf3 {[%clk 0:03:03]} 2...
Nc6 {[%clk 0:03:00.3]} 3. Bb5 {[%clk 0:02:59]} 3... g6 {[%clk 0:03:00.2]} 4.
Bxc6 {[%clk 0:02:55.2]} 4... dxc6 {[%clk 0:02:58.8]} 5. d3 {[%clk 0:02:54.3]}
5... Bg7 {[%clk 0:02:59.7]} 6. Nc3 {[%clk 0:02:51.2]} 6... Nf6 {[%clk
0:02:59.8]} 7. h3 {[%clk 0:02:49.2]} 7... O-O {[%clk 0:03:00.4]} 8. Be3 {[%clk
0:02:46.8]} 8... Nd7 {[%clk 0:03:00.6]} 9. Qd2 {[%clk 0:02:40.1]} 9... e5 {[%clk
0:03:01.5]} 10. Bh6 {[%clk 0:02:34.2]} 10... f6 {[%clk 0:03:02.1]} 11. a3 {[%clk
0:02:22.8]} 11... Rf7 {[%clk 0:03:00.8]} 12. b4 {[%clk 0:02:15.8]} 12... b6
{[%clk 0:02:57.6]} 13. Rb1 {[%clk 0:02:06.7]} 13... b5 {[%clk 0:02:53.3]} 14.
O-O {[%clk 0:01:35.8]} 14... a5 {[%clk 0:02:53.3]} 15. Ne2 {[%clk 0:01:13]}
15... cxb4 {[%clk 0:02:48.8]} 16. axb4 {[%clk 0:01:14.9]} 16... a4 {[%clk
0:02:49.9]} 17. c4 {[%clk 0:00:49.3]} 17... Nf8 {[%clk 0:02:45.2]} 18. cxb5
{[%clk 0:00:36.6]} 18... cxb5 {[%clk 0:02:46]} 19. Nc3 {[%clk 0:00:37]} 19...
Rb7 {[%clk 0:02:31.2]} 20. Bxg7 {[%clk 0:00:27.5]} 20... Kxg7 {[%clk 0:02:29.1]}
21. d4 {[%clk 0:00:28.4]} 21... exd4 {[%clk 0:02:28.5]} 22. Qxd4 {[%clk
0:00:25.4]} 22... Qxd4 {[%clk 0:02:21.7]} 23. Nxd4 {[%clk 0:00:27.3]} 23... Bd7
{[%clk 0:02:22.4]} 24. Rfc1 {[%clk 0:00:23.6]} 24... Ne6 {[%clk 0:02:21.4]} 25.
Nxe6+ {[%clk 0:00:15.8]} 25... Bxe6 {[%clk 0:02:22.3]} 26. Nd5 {[%clk
0:00:16.1]} 26... Bxd5 {[%clk 0:02:23.3]} 27. exd5 {[%clk 0:00:18]} 27... Rd8
{[%clk 0:02:23.7]} 28. Rc5 {[%clk 0:00:19.1]} 28... Rd6 {[%clk 0:02:23.4]} 29.
Re1 {[%clk 0:00:13]} 29... Kf7 {[%clk 0:02:23.9]} 30. g4 {[%clk 0:00:12.7]}
30... a3 {[%clk 0:02:24.1]} 31. Ra1 {[%clk 0:00:11.9]} 31... Ra6 {[%clk
0:02:24.6]} 32. Ra2 {[%clk 0:00:11.9]} 32... Ke7 {[%clk 0:02:24]} 33. Rc3 {[%clk
0:00:12.1]} 33... Rba7 {[%clk 0:02:24.9]} 34. Rc5 {[%clk 0:00:12.2]} 34... Rb6
{[%clk 0:02:24]} 35. Rc3 {[%clk 0:00:13.4]} 35... Ra4 {[%clk 0:02:24.9]} 36.
Raxa3 {[%clk 0:00:11.1]} 36... Kd6 {[%clk 0:02:25.4]} 37. Rab3 {[%clk
0:00:10.8]} 37... Ra2 {[%clk 0:02:15.7]} 38. Rc5 {[%clk 0:00:10.9]} 38... Rd2
{[%clk 0:02:15.2]} 39. Rbc3 {[%clk 0:00:06.6]} 39... Rxd5 {[%clk 0:02:15.2]} 40.
Rxd5+ {[%clk 0:00:08.5]} 40... Kxd5 {[%clk 0:02:16.4]} 41. Rc5+ {[%clk
0:00:09.8]} 41... Ke4 {[%clk 0:02:16]} 42. Kg2 {[%clk 0:00:10.7]} 42... Kd4
{[%clk 0:02:13]} 43. Kf3 {[%clk 0:00:10.8]} 43... Kd3 {[%clk 0:02:10.8]} 44. Kf4
{[%clk 0:00:09.5]} 44... Ke2 {[%clk 0:02:09.3]} 45. Kg3 {[%clk 0:00:09.8]} 45...
Rb7 {[%clk 0:02:07.9]} 46. h4 {[%clk 0:00:09.6]} 46... Rb6 {[%clk 0:02:06.1]}
47. h5 {[%clk 0:00:09.2]} 47... Kd3 {[%clk 0:02:06.1]} 48. Kf3 {[%clk
0:00:06.5]} 48... Kd4 {[%clk 0:02:05.6]} 49. Kf4 {[%clk 0:00:07.7]} 49... Rb7
{[%clk 0:02:03.8]} 50. h6 {[%clk 0:00:07.7]} 50... Kd3 {[%clk 0:01:57.1]} 51. f3
{[%clk 0:00:04.3]} 51... Kd4 {[%clk 0:01:57.8]} 52. Rc6 {[%clk 0:00:04.2]} 52...
Kd5 {[%clk 0:01:53.9]} 53. Rc5+ {[%clk 0:00:03.6]} 53... Kd6 {[%clk 0:01:54.9]}
54. g5 {[%clk 0:00:04.3]} 54... fxg5+ {[%clk 0:01:55.4]} 55. Kxg5 {[%clk
0:00:06.2]} 55... Rf7 {[%clk 0:01:55.6]} 56. Rxb5 {[%clk 0:00:06]} 56... Rxf3
{[%clk 0:01:55.1]} 57. Rb7 {[%clk 0:00:07.3]} 57... Rf5+ {[%clk 0:01:55.8]} 58.
Kg4 {[%clk 0:00:08.5]} 58... Kc6 {[%clk 0:01:52.4]} 59. Rxh7 {[%clk 0:00:09.3]}
59... Rh5 {[%clk 0:01:50.1]} 60. Rh8 {[%clk 0:00:06.3]} 60... Kb7 {[%clk
0:01:50.4]} 61. h7 {[%clk 0:00:02.7]} 61... Ka7 {[%clk 0:01:51.4]} 62. b5 {[%clk
0:00:03.4]} 62... Kb7 {[%clk 0:01:52.1]} 63. b6 {[%clk 0:00:04.5]} 63... Rh1
{[%clk 0:01:41.9]} 64. Kg5 {[%clk 0:00:05.7]} 64... Rh2 {[%clk 0:01:35.3]} 65.
Kf6 {[%clk 0:00:06.7]} 65... g5 {[%clk 0:01:36.6]} 66. Kg7 {[%clk 0:00:07]}
66... g4 {[%clk 0:01:37.8]} 67. Re8 {[%clk 0:00:07.4]} 67... g3 {[%clk
0:01:36.5]} 68. h8=Q {[%clk 0:00:08.4]} 68... Rxh8 {[%clk 0:01:35.4]} 69. Kxh8
{[%clk 0:00:10.3]} 69... Kxb6 {[%clk 0:01:36.2]} 70. Rg8 {[%clk 0:00:12.2]}
70... Kc5 {[%clk 0:01:37.3]} 71. Rxg3 {[%clk 0:00:12.5]} 1-0

[Event "*** Titled Tuesday Blitz"]
[Site "Chess.com"]
[Date "2019.04.02"]
[Round "8"]
[White "Chessialist"]
[Black "oskariot"]
[Result "0-1"]
[WhiteElo "2517"]
[BlackElo "2617"]
[TimeControl "180+2"]
[EndTime "15:50:50 PDT"]
[Termination "oskariot won by resignation"]

1. e4 {[%clk 0:03:01.9]} 1... e6 {[%clk 0:03:01]} 2. Qe2 {[%clk 0:03:02.6]} 2...
a6 {[%clk 0:03:01.5]} 3. g3 {[%clk 0:03:02.9]} 3... b5 {[%clk 0:03:02.9]} 4. Bg2
{[%clk 0:03:04.3]} 4... Bb7 {[%clk 0:03:04.5]} 5. d3 {[%clk 0:03:05.3]} 5... c5
{[%clk 0:03:05.7]} 6. a4 {[%clk 0:03:06.5]} 6... b4 {[%clk 0:03:06.2]} 7. Nf3
{[%clk 0:03:06]} 7... d6 {[%clk 0:03:07.8]} 8. b3 {[%clk 0:03:07.1]} 8... Nf6
{[%clk 0:03:09.3]} 9. Bb2 {[%clk 0:03:08.4]} 9... Be7 {[%clk 0:03:11.1]} 10.
Nbd2 {[%clk 0:03:09.7]} 10... e5 {[%clk 0:03:12.6]} 11. Nc4 {[%clk 0:03:10.3]}
11... Nc6 {[%clk 0:03:14.3]} 12. Ne3 {[%clk 0:03:11.3]} 12... O-O {[%clk
0:03:15.5]} 13. O-O {[%clk 0:03:10.3]} 13... Nd4 {[%clk 0:03:16.7]} 14. Nxd4
{[%clk 0:03:11.5]} 14... cxd4 {[%clk 0:03:17.9]} 15. Nc4 {[%clk 0:03:12.8]}
15... Re8 {[%clk 0:03:08.4]} 16. a5 {[%clk 0:03:02.1]} 16... Bf8 {[%clk
0:03:09.1]} 17. Qd2 {[%clk 0:03:02.5]} 17... d5 {[%clk 0:03:09.8]} 18. exd5
{[%clk 0:03:02.9]} 18... Bxd5 {[%clk 0:03:06.8]} 19. Nb6 {[%clk 0:03:02.2]}
19... Bxg2 {[%clk 0:03:07.5]} 20. Kxg2 {[%clk 0:03:04.1]} 20... Ra7 {[%clk
0:03:05.5]} 21. Rfe1 {[%clk 0:03:04.8]} 21... Nd5 {[%clk 0:03:06.3]} 22. Nxd5
{[%clk 0:03:02.1]} 22... Qxd5+ {[%clk 0:03:07]} 23. f3 {[%clk 0:03:03.7]} 23...
f5 {[%clk 0:02:56.2]} 24. Re2 {[%clk 0:03:00]} 24... Rc7 {[%clk 0:02:45.1]} 25.
Rae1 {[%clk 0:03:00.1]} 25... Rec8 {[%clk 0:02:29.2]} 26. Qg5 {[%clk 0:02:55.5]}
26... Rxc2 {[%clk 0:01:17.4]} 27. Qxf5 {[%clk 0:02:55]} 27... Qxb3 {[%clk
0:01:14]} 28. Ba1 {[%clk 0:02:55.8]} 28... Bd6 {[%clk 0:00:37.8]} 29. Kh3 {[%clk
0:02:41.2]} 29... Qf7 {[%clk 0:00:24.5]} 30. Qg4 {[%clk 0:02:28.2]} 30... g6
{[%clk 0:00:10.9]} 31. f4 {[%clk 0:02:10.1]} 31... exf4 {[%clk 0:00:11.1]} 32.
Bxd4 {[%clk 0:01:54.5]} 32... fxg3 {[%clk 0:00:04.9]} 33. hxg3 {[%clk
0:01:51.4]} 33... Qf5 {[%clk 0:00:05.5]} 34. Qxf5 {[%clk 0:01:52.6]} 34... gxf5
{[%clk 0:00:06.4]} 35. Re6 {[%clk 0:01:54.1]} 35... R8c6 {[%clk 0:00:04.5]} 36.
Rf1 {[%clk 0:01:47.9]} 36... Bf8 {[%clk 0:00:05.3]} 37. Rxc6 {[%clk 0:01:42.4]}
37... Rxc6 {[%clk 0:00:07.2]} 38. Rxf5 {[%clk 0:01:43.9]} 38... Rh6+ {[%clk
0:00:06.2]} 39. Kg4 {[%clk 0:01:43.4]} 39... Rg6+ {[%clk 0:00:07]} 40. Kf3
{[%clk 0:01:43.8]} 40... b3 {[%clk 0:00:06.9]} 41. Rd5 {[%clk 0:01:27.5]} 41...
Rc6 {[%clk 0:00:07.5]} 42. Rd8 {[%clk 0:01:27.1]} 42... Rd6 {[%clk 0:00:05.7]}
43. Rxd6 {[%clk 0:01:15.6]} 43... Bxd6 {[%clk 0:00:07.6]} 44. g4 {[%clk
0:01:12.3]} 44... Ba3 {[%clk 0:00:08.3]} 45. Ke4 {[%clk 0:00:58.8]} 45... b2
{[%clk 0:00:09.7]} 46. Bxb2 {[%clk 0:01:00.4]} 46... Bxb2 {[%clk 0:00:11.6]} 47.
Kd5 {[%clk 0:01:01.9]} 47... Bc3 {[%clk 0:00:12.8]} 48. Kc6 {[%clk 0:01:03.6]}
48... Bxa5 {[%clk 0:00:14.1]} 49. Kb7 {[%clk 0:01:05.3]} 49... Kg7 {[%clk
0:00:15.2]} 50. Kxa6 {[%clk 0:01:06.9]} 50... Bc3 {[%clk 0:00:16.9]} 51. Kb5
{[%clk 0:01:08.2]} 51... Kg6 {[%clk 0:00:18.4]} 52. Kc4 {[%clk 0:01:09.6]} 52...
Ba1 {[%clk 0:00:15.9]} 53. d4 {[%clk 0:01:10.2]} 53... Kg5 {[%clk 0:00:17.1]}
54. d5 {[%clk 0:00:52.1]} 54... Kxg4 {[%clk 0:00:17.8]} 55. d6 {[%clk
0:00:52.8]} 55... h5 {[%clk 0:00:18.3]} 56. Kd3 {[%clk 0:00:51.5]} 56... Kg3
{[%clk 0:00:17.7]} 57. Ke4 {[%clk 0:00:52.2]} 57... h4 {[%clk 0:00:17.6]} 58.
Kf5 {[%clk 0:00:53.4]} 58... Bc3 {[%clk 0:00:19]} 59. d7 {[%clk 0:00:54]} 59...
Ba5 {[%clk 0:00:20.4]} 0-1